bitfinex/quotes_ETHUSD_20220202
["timestamp","ask_amount","ask_price","bid_price","bid_amount"]
[1643774968682,0.1802,2773.5,2772.4,0.3]
[1643774968882,0.34045399,2773.2,2772.5,0.90138]
[1643774969302,0.34045399,2773.2,2772.4,2.1027]
[1643774969700,0.34045399,2773.2,2772.4,2.4027]
[1643774970000,0.34045399,2773.2,2772.4,2.1027]
[1643774971004,0.34045399,2773.2,2772.5,1.93637753]
[1643774971407,0.01241186,2772.6,2772.0,1.80292]
[1643774971612,0.01288072,2772.2,2771.7,0.25]
[1643774971807,0.01288072,2772.2,2771.2,0.00157584]
[1643774972012,0.1802,2772.1,2771.2,0.00157584]
[1643774972203,0.1802,2772.1,2771.1,0.90185]
[1643774972403,0.1802,2772.1,2771.5,0.144263]
[1643774972603,1.03240664,2772.1,2771.1,0.90185]
[1643774973048,1.03240664,2772.1,2771.1,2.20185]
[1643774973250,0.442307,2771.8,2771.1,2.20185]
[1643774973453,1.03240664,2772.1,2771.1,2.20185]
[1643774973454,2.24390664,2772.1,2771.1,2.20185]
[1643774974454,0.35489216,2771.9,2771.1,2.20185]
[1643774975054,2.24390664,2772.1,2771.1,2.20185]
[1643774975659,1.93629343,2772.0,2771.1,1.90185]
[1643774975857,2.24390664,2772.1,2771.1,1.90185]
[1643774975858,2.24390664,2772.1,2771.1,0.90185]
[1643774976057,0.37608271,2771.9,2771.1,1.90185]
[1643774976256,4.24568459,2772.1,2771.1,1.90185]
[1643774976611,4.20676156,2772.1,2771.1,2.20185]
[1643774976802,4.2273712,2772.1,2771.1,2.20185]
[1643774977008,2.24390664,2772.1,2771.1,2.20185]
[1643774977406,4.60671209,2772.1,2771.1,2.20185]
[1643774977802,4.62339047,2772.1,2771.1,2.20185]
[1643774978002,4.62459726,2772.1,2771.1,2.20185]
[1643774978805,4.62459726,2772.1,2771.1,1.90185]
[1643774979010,4.92459726,2772.1,2771.1,0.90185]
[1643774980213,4.90240949,2772.1,2771.1,0.90185]
[1643774980452,2.98067203,2772.1,2771.1,0.90185]
[1643774980666,4.91413506,2772.1,2771.1,0.90185]
[1643774982559,2.98067203,2772.1,2771.1,0.90185]
[1643774983357,4.89768684,2772.1,2771.1,0.90185]
[1643774983556,2.98067203,2772.1,2771.1,0.90185]
[1643774983759,1.3917,2772.1,2771.1,0.90185]
[1643774983961,1.3917,2772.1,2771.4,0.90175]
[1643774984206,0.1802,2772.4,2771.4,1.20175]
[1643774984407,1.4119,2772.8,2771.4,0.3]
[1643774984607,1.93073341,2772.7,2771.4,1.3]
[1643774984811,0.42352197,2771.8,2771.4,0.3]
[1643774985011,0.19224181,2772.6,2771.2,1.0]
[1643774985012,0.9019192,2772.1,2771.2,1.0]
[1643774985208,0.9019192,2772.1,2771.1,1.0]
[1643774986009,0.43810398,2772.0,2771.1,1.0]
[1643774986210,0.1804,2772.2,2771.3,0.90184]
[1643774986412,2.087924,2772.4,2771.3,0.90184]
[1643774986413,2.07975106,2772.3,2771.3,0.90184]
[1643774986611,2.38214975,2772.3,2771.3,0.90184]
[1643774987012,0.92535613,2772.2,2771.3,0.90184]
[1643774987211,0.38409262,2772.0,2771.3,0.90184]
[1643774987948,0.38409262,2772.0,2771.3,1.046104]
[1643774988148,0.38409262,2772.0,2771.3,0.90184]
[1643774991258,0.8541608,2771.7,2771.3,0.90184]
[1643774991912,1.52649262,2772.0,2771.3,0.90184]
[1643774993510,1.82528198,2772.0,2771.3,0.90184]
[1643774993809,1.1424,2772.0,2771.3,0.90184]
[1643774994210,3.06986913,2772.0,2771.3,0.90184]
[1643774994410,3.06986913,2772.0,2771.0,5.15847]
[1643774994811,0.38936973,2771.7,2771.0,5.15847]
[1643774995014,1.1424,2772.0,2771.0,5.15847]
[1643774995215,3.54939492,2772.0,2771.0,5.15847]
[1643774995654,3.54939492,2772.0,2771.0,5.30275]
[1643774995856,3.54939492,2772.0,2771.2,0.90187]
[1643774995857,1.6228,2772.0,2771.2,0.90187]
[1643774996154,1.4424,2772.0,2771.2,0.90187]
[1643774996355,0.33072866,2771.7,2771.2,0.90187]
[1643774996756,1.4424,2772.0,2771.2,0.90187]
[1643774996960,1.1424,2772.0,2771.2,0.90187]
[1643774997157,1.1424,2772.0,2771.2,1.20187]
[1643774997763,0.325427,2771.9,2771.2,1.20187]
[1643774999704,0.325427,2771.9,2771.2,0.90187]
[1643774999913,0.325427,2771.9,2771.0,1.80367]
[1643774999914,0.92316921,2771.6,2771.0,1.80367]
[1643775001210,0.42076714,2771.4,2771.0,1.80367]
[1643775003458,1.2077,2771.7,2771.0,1.94796]
[1643775003658,1.2077,2771.7,2771.0,2.80367]
[1643775003860,1.2077,2771.7,2771.0,1.80367]
[1643775004259,1.89172932,2771.6,2771.0,1.80367]
[1643775004464,0.01215336,2771.1,2770.5,0.25]
[1643775004660,0.01215336,2771.1,2770.4,0.05005]
[1643775004661,2.07212932,2771.6,2770.4,0.05005]
[1643775004861,0.8645288,2771.2,2770.4,0.05005]
[1643775005669,0.36232102,2771.1,2770.4,0.05005]
[1643775005865,1.26449572,2771.1,2770.4,0.05005]
[1643775006064,0.8645288,2771.2,2770.4,0.05005]
[1643775006266,0.8645288,2771.2,2770.4,1.05005]
[1643775006464,1.1733,2771.3,2770.4,1.05005]
[1643775007307,1.1733,2771.3,2770.5,0.9021]
[1643775008212,1.55947681,2771.3,2770.5,0.9021]
[1643775009213,1.1733,2771.3,2770.5,0.9021]
[1643775010957,1.4733,2771.3,2770.5,0.9021]
[1643775011259,1.4733,2771.3,2770.5,1.046412]
[1643775011456,1.1733,2771.3,2770.5,1.046412]
[1643775011658,1.4938691,2771.3,2770.5,2.2021]
[1643775012358,1.4938691,2771.3,2770.5,1.9021]
[1643775012560,1.4938691,2771.3,2770.5,0.9021]
[1643775012762,1.4938691,2771.3,2770.5,2.2021]
[1643775012964,1.4938691,2771.3,2770.5,1.2021]
[1643775013160,1.4938691,2771.3,2770.5,2.2021]
[1643775013963,1.1733,2771.3,2770.5,2.7171]
[1643775014222,0.1804,2771.7,2770.7,2.40393]
[1643775014421,1.2361,2772.3,2770.8,0.515]
[1643775014422,1.3068,2772.2,2770.8,0.515]
[1643775014823,0.8446721,2772.1,2770.8,2.43464376]
[1643775015022,1.3068,2772.2,2770.9,0.90178]
[1643775015225,1.1264,2772.2,2771.0,0.6]
[1643775015421,1.1264,2772.2,2771.4,0.90164]
[1643775015623,0.1802,2772.8,2771.5,0.515]
[1643775015823,0.1802,2772.8,2771.5,3.7113]
[1643775016031,2.68929332,2772.7,2771.5,3.7113]
[1643775016227,0.1802,2772.6,2771.7,1.80333]
[1643775016426,0.1802,2772.6,2771.8,0.515]
[1643775016623,1.165,2772.7,2771.8,0.515]
[1643775016824,1.165,2772.7,2771.8,1.815]
[1643775017126,0.71207232,2772.3,2772.1,0.90161]
[1643775017428,1.165,2772.7,2772.1,0.90161]
[1643775017854,1.165,2772.7,2772.1,1.90161]
[1643775018052,1.165,2772.7,2772.1,0.90161]
[1643775018558,0.35700455,2772.2,2772.1,0.90161]
[1643775018754,0.35700455,2772.2,2772.0,1.80315]
[1643775019558,1.165,2772.7,2772.0,1.80315]
[1643775019959,1.96291262,2772.6,2772.0,1.80315]
[1643775020163,1.96291262,2772.6,2771.5,1.80342]
[1643775020164,1.52436155,2772.5,2771.5,1.80342]
[1643775020362,2.56394164,2772.4,2771.2,0.144238]
[1643775020562,2.86394164,2772.4,2771.5,3.5]
[1643775020762,1.52452751,2772.3,2771.5,3.5]
[1643775021066,0.91926123,2771.8,2771.5,3.5]
[1643775021826,0.91926123,2771.8,2771.4,0.90183]
[1643775021827,0.4197449,2771.8,2771.4,0.90183]
[1643775023024,1.28041216,2771.8,2771.4,0.90183]
[1643775023223,0.4197449,2771.8,2771.4,0.90183]
[1643775025577,0.1804,2772.2,2771.4,0.90183]
[1643775025778,0.1804,2772.2,2771.4,1.20183]
[1643775025974,0.1804,2772.2,2771.6,0.90172]
[1643775026179,1.1454,2772.3,2771.6,0.90172]
[1643775026373,1.1454,2772.3,2771.6,1.90172]
[1643775026573,1.1454,2772.3,2771.6,1.20172]
[1643775026773,1.58864821,2772.3,2771.6,1.90172]
[1643775026974,1.58864821,2772.3,2771.6,0.90172]
[1643775027173,1.58864821,2772.3,2771.6,1.90172]
[1643775027374,1.1454,2772.3,2771.6,2.20172]
[1643775027778,1.1454,2772.3,2771.6,2.71672]
[1643775028578,1.1454,2772.3,2771.6,6.21672]
[1643775029628,1.1454,2772.3,2771.6,8.12815286]
[1643775030432,1.1454,2772.3,2771.6,4.62815286]
[1643775031437,0.1802,2772.7,2771.6,4.62815286]
[1643775031438,0.4184646,2772.5,2771.9,0.9016]
[1643775031831,0.4184646,2772.5,2771.9,1.9016]
[1643775032032,0.4184646,2772.5,2771.9,0.9016]
[1643775032234,0.4184646,2772.5,2771.9,1.9016]
[1643775032533,0.4184646,2772.5,2771.9,0.9016]
[1643775032734,0.1802,2772.7,2771.9,2.8962]
[1643775032957,0.1802,2772.7,2771.9,1.8962]
[1643775033158,0.1802,2772.7,2772.1,0.90161]
[1643775034060,0.36108924,2772.6,2772.1,0.90161]
[1643775034655,0.36108924,2772.6,2772.1,0.90038515]
[1643775037926,2.36108924,2772.6,2772.1,0.90038515]
[1643775038135,2.36108924,2772.6,2771.4,1.15161]
[1643775038136,1.52443228,2772.5,2771.4,0.25]
[1643775038324,0.36733482,2771.7,2771.1,3.0719]
[1643775038525,0.01239266,2772.2,2771.1,3.0719]
[1643775038925,0.89509092,2772.1,2771.1,3.0719]
[1643775039328,0.89509092,2772.1,2771.2,0.90191]
[1643775039724,0.40937572,2771.8,2771.2,0.90191]
[1643775040124,0.40937572,2771.8,2771.2,1.90191]
[1643775042364,0.89509092,2772.1,2771.2,1.90191]
[1643775042766,1.19509092,2772.1,2771.2,1.90191]
[1643775043362,0.35611442,2772.0,2771.2,1.90191]
[1643775045213,0.89509092,2772.1,2771.2,1.90191]
[1643775046217,0.38486193,2771.4,2771.2,1.90191]
[1643775046430,0.17878,2771.8,2771.0,1.8038]
[1643775046620,0.9019148,2771.9,2770.5,2.82596681]
[1643775046621,1.3637,2771.9,2770.8,1.80393]
[1643775046925,1.3637,2771.9,2771.0,0.90198]
[1643775047128,1.1833,2771.9,2771.0,1.41698]
[1643775047718,1.1833,2771.9,2771.0,4.72752139]
[1643775047962,1.1833,2771.9,2771.1,0.90173]
[1643775048165,1.1833,2771.9,2771.3,0.90179]
[1643775048364,1.1833,2771.9,2771.3,1.90179]
[1643775048571,0.1804,2772.3,2771.4,0.515]
[1643775048768,0.1802,2772.5,2771.6,0.90157]
[1643775048964,0.00235727,2772.6,2771.7,1.41656]
[1643775049363,0.4297485,2772.5,2771.7,1.41656]
[1643775050165,0.4297485,2772.5,2771.9,0.90154]
[1643775050363,0.4297485,2772.5,2772.0,0.515]
[1643775050769,0.00235829,2772.1,2772.0,2.48806791]
[1643775051067,0.00235829,2772.1,2772.0,0.515]
[1643775052910,0.00235829,2772.1,2771.8,2.80308]
[1643775052911,0.00235829,2772.1,2771.8,1.80308]
[1643775053912,0.36332939,2772.0,2771.8,1.80308]
[1643775054116,0.00235829,2772.1,2771.8,1.80308]
[1643775054313,0.00235829,2772.1,2771.8,2.80308]
[1643775055113,0.00235829,2772.1,2771.8,1.80308]
[1643775055359,0.00235829,2772.1,2771.8,2.80308]
[1643775055562,0.00138775,2772.1,2771.8,2.80308]
[1643775056162,0.44401745,2772.1,2771.8,2.80308]
[1643775057065,0.00138775,2772.1,2771.9,0.515]
[1643775059524,0.32750468,2772.6,2771.9,0.515]
[1643775059725,0.32750468,2772.6,2772.1,0.90158]
[1643775061729,2.77569132,2772.7,2772.1,0.90158]
[1643775062131,1.1657,2772.7,2772.1,0.90158]
[1643775064674,1.1657,2772.7,2772.2,2.74560231]
[1643775064874,1.1657,2772.7,2772.3,1.90146]
[1643775065076,4.136,2773.2,2772.4,2.16803615]
[1643775065272,1.3759,2773.3,2772.4,2.46803615]
[1643775065478,1.52401978,2773.2,2772.4,2.46803615]
[1643775065673,1.52401978,2773.2,2772.4,0.3]
[1643775065873,1.52401978,2773.2,2772.4,2.24149943]
[1643775065874,0.6976531,2773.1,2772.4,2.24149943]
[1643775066074,0.32023763,2773.0,2772.4,2.24149943]
[1643775067115,1.3759,2773.3,2772.5,0.90136]
[1643775067314,1.52402937,2773.2,2772.6,2.04905063]
[1643775068816,0.37344653,2773.0,2772.4,3.29313994]
[1643775069016,0.37344653,2773.0,2772.4,2.29313994]
[1643775069215,0.9366374,2773.2,2772.8,0.90141]
[1643775069417,1.52406753,2773.1,2772.8,0.90141]
[1643775069618,0.9366374,2773.2,2772.8,0.90141]
[1643775070016,1.52410196,2773.1,2772.8,0.90141]
[1643775070216,1.3759,2773.3,2772.8,0.90141]
[1643775070467,1.5240704,2773.2,2772.8,0.90141]
[1643775071071,0.6785897,2773.1,2772.7,1.80272]
[1643775072271,0.35056489,2773.0,2772.7,1.80272]
[1643775075822,1.3759,2773.3,2772.7,1.80272]
[1643775076027,1.52407126,2773.2,2772.7,1.80272]
[1643775076924,1.52407126,2773.2,2772.7,2.10272]
[1643775077125,1.3759,2773.3,2772.7,2.10272]
[1643775077326,1.1957,2773.3,2772.7,2.10272]
[1643775077526,1.5240502,2773.2,2772.7,2.10272]
[1643775077725,1.5240502,2773.2,2772.7,1.80272]
[1643775077965,0.38007318,2773.2,2772.7,1.80272]
[1643775078168,1.1957,2773.3,2772.7,1.80272]
[1643775078367,1.1957,2773.3,2772.9,0.90139]
[1643775080272,1.51513344,2773.3,2772.9,0.90139]
[1643775086584,1.51404283,2773.3,2772.9,0.90139]
[1643775087587,1.52402772,2773.2,2772.7,1.80272]
[1643775087790,0.32991715,2772.8,2772.7,2.10272]
[1643775089919,0.32991715,2772.8,2772.7,1.80272]
[1643775094465,0.32991715,2772.8,2772.5,1.3]
[1643775094667,0.32991715,2772.8,2772.2,1.80294]
[1643775094668,1.8976305,2772.7,2772.2,1.80294]
[1643775094874,1.8976305,2772.7,2771.7,0.25]
[1643775094875,1.5367084,2772.6,2771.7,0.25]
[1643775095066,1.5367084,2772.6,2771.1,1.16545537]
[1643775095067,3.52434059,2772.5,2771.1,1.16545537]
[1643775095267,0.38445025,2771.2,2771.1,1.16545537]
[1643775095467,0.38445025,2771.2,2771.1,1.80364]
[1643775097319,0.38445025,2771.2,2771.1,3.10364]
[1643775097721,2.0,2772.1,2771.1,3.10364]
[1643775097920,2.0,2772.1,2771.4,0.90183]
[1643775098120,0.9018694,2772.0,2771.4,0.90183]
[1643775098521,2.0,2772.1,2771.4,0.90183]
[1643775098723,2.0,2772.1,2771.4,1.90183]
[1643775099330,0.69982195,2771.8,2771.4,1.90183]
[1643775099625,0.36915227,2771.5,2771.4,1.90183]
[1643775103676,0.36915227,2771.5,2771.4,1.90034124]
[1643775108666,0.36915227,2771.5,2771.4,0.90034124]
[1643775108869,1.16745227,2771.5,2771.3,1.80359]
[1643775109069,1.16745227,2771.5,2770.8,2.70546]
[1643775109272,0.42540595,2770.7,2770.5,1.80419]
[1643775109673,2.35056595,2770.7,2770.4,0.194366]
[1643775109867,0.42540595,2770.7,2770.4,0.194366]
[1643775110070,1.54560595,2770.7,2770.4,0.194366]
[1643775114631,0.42540595,2770.7,2770.4,0.194366]
[1643775114843,1.1703,2771.1,2770.4,0.56505]
[1643775115229,1.1703,2771.1,2770.4,1.56505]
[1643775115676,0.861818,2770.9,2770.4,1.56505]
[1643775116077,0.3782817,2770.8,2770.4,1.56505]
[1643775116678,0.3782817,2770.8,2770.5,0.3]
[1643775119127,1.0824739,2771.5,2770.5,0.3]
[1643775119128,0.1804,2771.5,2770.5,0.3]
[1643775119328,1.6651,2771.7,2770.8,0.90192]
[1643775119526,1.6651,2771.7,2770.8,1.41692]
[1643775119727,3.63775625,2771.7,2770.8,2.41692]
[1643775119927,3.63775625,2771.7,2770.8,1.41692]
[1643775120236,0.3753385,2771.2,2770.8,2.41692]
[1643775120425,0.3753385,2771.2,2770.8,2.71692]
[1643775120826,0.3753385,2771.2,2770.8,2.41692]
[1643775121525,0.3753385,2771.2,2770.8,2.71692]
[1643775122229,0.3753385,2771.2,2770.8,2.41692]
[1643775122428,0.3753385,2771.2,2770.8,2.71692]
[1643775122866,0.99356776,2771.6,2770.8,2.71692]
[1643775123066,0.81316776,2771.6,2771.0,0.90193]
[1643775123870,2.78241066,2771.6,2771.0,0.90193]
[1643775124070,0.36433136,2771.1,2770.8,0.715]
[1643775124271,0.36433136,2771.1,2770.8,1.0]
[1643775124469,0.36433136,2771.1,2770.7,1.80383]
[1643775125069,0.36433136,2771.1,2770.7,2.10383]
[1643775125474,1.18567609,2771.1,2770.7,1.80383]
[1643775125674,1.18567609,2771.1,2770.5,1.948399]
[1643775125872,0.1804,2771.0,2770.5,0.144309]
[1643775126269,0.1804,2771.0,2770.4,0.05005]
[1643775126922,0.11114159,2771.0,2770.4,0.05005]
[1643775127822,0.44694022,2770.5,2770.4,0.05005]
[1643775132985,0.9022171,2771.1,2770.4,1.05005]
[1643775133195,1.984922,2771.2,2770.4,1.05005]
[1643775133196,0.1804,2771.2,2770.6,0.90204]
[1643775133386,2.042093,2771.3,2770.7,0.515]
[1643775133387,1.14,2771.3,2770.7,0.515]
[1643775134214,0.3235474,2771.0,2770.7,0.815]
[1643775134415,0.3235474,2771.0,2770.7,1.80386]
[1643775135021,1.14,2771.3,2770.7,1.80386]
[1643775135827,2.02332512,2771.3,2770.7,1.80386]
[1643775136022,1.14,2771.3,2770.7,1.80386]
[1643775136223,1.14,2771.3,2770.7,2.10386]
[1643775136926,0.9020995,2771.2,2770.7,2.10386]
[1643775137124,0.9020995,2771.2,2770.7,1.80386]
[1643775137125,0.38201897,2771.0,2770.7,1.80386]
[1643775137864,0.38201897,2771.0,2770.5,0.3]
[1643775138265,0.9020995,2771.2,2770.6,0.90211]
[1643775140269,0.42806264,2771.1,2770.6,0.90211]
[1643775141473,2.01777866,2771.0,2770.5,0.3]
[1643775141919,0.60846264,2771.1,2770.5,0.3]
[1643775142322,0.90846264,2771.1,2770.4,1.85419]
[1643775142525,0.60846264,2771.1,2770.4,1.85419]
[1643775142725,0.90846264,2771.1,2770.4,1.85419]
[1643775142924,1.94679186,2771.0,2770.4,1.85419]
[1643775143125,0.90846264,2771.1,2770.4,1.85419]
[1643775143324,0.43608089,2770.6,2770.4,1.85419]
[1643775143524,1.2021286,2771.1,2770.5,0.3]
[1643775144126,0.92588593,2770.9,2770.5,0.3]
[1643775144524,0.39204083,2770.7,2770.5,0.3]
[1643775145680,0.39204083,2770.7,2770.4,0.05005]
[1643775147281,0.39204083,2770.7,2770.4,1.0]
[1643775147684,0.39204083,2770.7,2770.3,3.1209413]
[1643775148086,0.39204083,2770.7,2770.4,1.0]
[1643775148282,0.9021889,2770.9,2770.3,3.1209413]
[1643775148482,0.92555977,2771.0,2770.4,1.0]
[1643775148685,0.92555977,2771.0,2770.5,0.90206]
[1643775148885,0.92555977,2771.0,2770.5,1.20206]
[1643775149322,0.32198412,2770.8,2770.5,1.20206]
[1643775149524,0.32198412,2770.8,2770.5,0.90206]
[1643775149721,0.32198412,2770.8,2770.5,1.20206]
[1643775149923,0.9020839,2771.1,2770.5,1.20206]
[1643775151228,1.33485224,2771.1,2770.5,1.20206]
[1643775152230,1.33485224,2771.1,2770.5,0.90206]
[1643775152875,1.63485224,2771.1,2770.5,0.90206]
[1643775153277,1.2020839,2771.1,2770.5,0.90206]
[1643775154876,3.12430612,2771.1,2770.5,0.90206]
[1643775155481,1.2020839,2771.1,2770.5,0.90206]
[1643775156821,0.3754826,2770.7,2770.4,1.80412]
[1643775157027,0.3754826,2770.7,2770.3,2.7337513]
[1643775157028,1.93525318,2770.6,2770.3,2.2187513]
[1643775157620,2.11565318,2770.6,2770.3,2.2187513]
[1643775157820,0.85951283,2770.5,2770.3,2.2187513]
[1643775158020,1.76185813,2770.5,2770.3,2.2187513]
[1643775158619,0.3,2770.4,2770.3,2.2187513]
[1643775158822,1.76185813,2770.5,2770.3,2.2187513]
[1643775159629,0.6754826,2770.7,2770.3,2.2187513]
[1643775160026,0.3754826,2770.7,2770.3,2.2187513]
[1643775161275,0.3754826,2770.7,2770.3,3.1209413]
[1643775166728,2.2941222,2770.7,2770.3,3.1209413]
[1643775167326,0.3754826,2770.7,2770.3,3.1209413]
[1643775168774,0.6754826,2770.7,2770.3,3.1209413]
[1643775169174,2.66618303,2770.7,2770.3,3.1209413]
[1643775169375,0.95467435,2770.6,2770.3,3.1209413]
[1643775169581,1.85695365,2770.6,2770.3,3.1209413]
[1643775170380,1.85695365,2770.6,2770.3,2.2187513]
[1643775170578,1.85608837,2770.6,2770.3,2.2187513]
[1643775171820,0.90141402,2770.6,2770.3,2.2187513]
[1643775173827,1.0,2770.5,2770.3,2.2187513]
[1643775174228,1.0,2770.5,2770.3,3.1209813]
[1643775174735,1.0,2770.5,2770.4,1.0]
[1643775176676,1.0,2770.5,2770.3,2.2187513]
[1643775176870,1.3,2770.5,2770.3,2.2187513]
[1643775177069,1.0,2770.5,2770.3,2.2187513]
[1643775178472,1.0,2770.5,2770.3,3.1209913]
[1643775182031,1.0,2770.5,2770.2,0.90224]
[1643775182245,1.0,2770.5,2769.1,11.59362]
[1643775182246,1.9476811,2770.4,2769.1,11.59362]
[1643775182539,0.37230642,2769.8,2769.7,2.9337959]
[1643775184375,0.37230642,2769.8,2769.7,2.8837959]
[1643775188137,1.3338,2770.3,2769.7,2.8837959]
[1643775188342,1.3338,2770.3,2769.7,4.1837959]
[1643775188539,1.1534,2770.3,2769.7,3.1837959]
[1643775188739,1.1534,2770.3,2769.8,1.0]
[1643775189342,0.42254294,2770.2,2769.8,1.9022]
[1643775190691,2.31712125,2770.2,2769.8,0.9022]
[1643775190880,2.61712125,2770.2,2769.8,0.9022]
[1643775191079,0.72254294,2770.2,2769.8,0.9022]
[1643775191483,2.6123022,2770.2,2769.8,0.9022]
[1643775191681,2.7927022,2770.2,2769.8,0.9022]
[1643775192082,0.90294294,2770.2,2769.8,0.9022]
[1643775193883,2.6317737,2770.2,2769.8,0.9022]
[1643775194624,2.6317737,2770.2,2769.7,2.8837959]
[1643775194922,0.1804,2770.1,2769.7,1.0791059]
[1643775195319,0.01298819,2770.0,2769.7,1.0791059]
[1643775195723,0.01298819,2770.0,2769.7,1.07762251]
[1643775196123,0.1804,2769.9,2769.7,1.07762251]
[1643775196323,0.4804,2769.9,2769.7,1.07762251]
[1643775196623,0.9025849,2769.8,2769.7,1.07762251]
[1643775196823,2.87010726,2769.8,2769.7,1.07762251]
[1643775200478,2.79407102,2769.8,2769.7,1.07762251]
[1643775201079,6.97990641,2769.7,2769.3,0.90256]
[1643775201283,6.97990641,2769.7,2768.9,1.80523]
[1643775201284,0.39074664,2769.0,2768.9,1.80523]
[1643775202227,1.4255,2769.7,2768.9,1.80523]
[1643775202426,0.1804,2769.6,2768.9,1.65523]
[1643775202727,0.01281028,2769.5,2768.8,0.144404]
[1643775202927,0.01281028,2769.5,2768.7,2.80538]
[1643775203126,0.9026869,2769.3,2768.7,2.80538]
[1643775203331,0.4106159,2768.9,2768.7,2.80538]
[1643775204328,2.3540788,2769.3,2768.7,2.80538]
[1643775204627,2.0540788,2769.3,2768.7,2.80538]
[1643775204831,2.0540788,2769.3,2768.7,3.10538]
[1643775205481,2.98729427,2769.3,2768.7,3.10538]
[1643775205883,2.98729427,2769.3,2768.7,2.80538]
[1643775206079,0.9027323,2769.1,2768.7,2.80538]
[1643775206479,0.9027323,2769.1,2768.7,5.10538]
[1643775206680,3.1894235,2769.8,2768.7,3.3]
[1643775206880,1.3842,2769.8,2768.7,3.3]
[1643775207079,1.2038,2769.8,2768.7,3.3]
[1643775207279,1.2038,2769.8,2768.8,0.72097346]
[1643775207889,1.2038,2769.8,2768.8,1.23597346]
[1643775208085,0.9025591,2769.7,2768.9,2.0]
[1643775208283,0.9025591,2769.7,2769.0,0.90258]
[1643775208487,0.9025591,2769.7,2769.0,1.20258]
[1643775208682,0.9025591,2769.7,2769.0,1.3]
[1643775209325,2.1063372,2769.8,2769.2,0.9026]
[1643775209724,2.1063372,2769.8,2769.2,1.9026]
[1643775209930,2.1063372,2769.8,2769.2,0.9026]
[1643775210128,2.4063372,2769.8,2769.2,1.0]
[1643775210536,0.1804,2769.7,2769.2,1.0]
[1643775210730,0.34488985,2769.5,2769.1,1.8051]
[1643775211330,2.08940419,2769.7,2769.1,1.8051]
[1643775211532,0.1804,2769.7,2769.1,1.8051]
[1643775212129,0.9026832,2769.5,2769.1,1.8051]
[1643775213980,3.00821644,2769.7,2769.1,1.8051]
[1643775214179,1.3829647,2769.7,2769.1,1.8051]
[1643775214380,1.3829647,2769.7,2769.1,2.8051]
[1643775215382,1.0829647,2769.7,2769.1,2.8051]
[1643775216387,0.9025647,2769.7,2769.1,2.8051]
[1643775222985,0.9025647,2769.7,2769.1,2.6551]
[1643775224156,2.1063035,2769.8,2769.1,2.6551]
[1643775224352,4.12603,2770.2,2769.1,2.6551]
[1643775224353,1.0,2770.5,2769.2,8.727765]
[1643775224551,1.0,2770.5,2769.5,27.48518998]
[1643775224749,1.0,2770.5,2769.6,2.815]
[1643775224947,1.0,2770.5,2769.7,21.03]
[1643775225146,1.0,2770.5,2770.0,0.90213]
[1643775225352,1.0,2770.5,2770.1,0.515]
[1643775225550,1.0,2770.5,2770.2,0.515]
[1643775225850,1.0,2770.5,2770.3,0.515]
[1643775225851,0.35041124,2770.4,2770.3,0.515]
[1643775226254,1.0,2770.5,2770.3,2.31945]
[1643775226656,1.0,2770.5,2770.3,3.31945]
[1643775227052,1.0,2770.5,2770.3,2.31945]
[1643775227451,1.0,2770.5,2770.3,3.31945]
[1643775228081,1.0,2770.5,2770.3,2.31945]
[1643775228281,1.0,2770.5,2770.3,3.31945]
[1643775230182,0.95,2770.5,2770.3,3.31945]
[1643775230991,0.95,2770.5,2770.4,0.90219]
[1643775231388,0.95,2770.5,2770.4,1.90219]
[1643775232028,0.95,2770.5,2770.4,0.90219]
[1643775232230,0.95,2770.5,2770.4,1.85219]
[1643775232428,0.95,2770.5,2770.4,0.85219]
[1643775232627,0.95,2770.5,2770.4,1.85219]
[1643775235797,0.95,2770.5,2770.4,3.77901926]
[1643775235995,0.95,2770.5,2770.4,1.85219]
[1643775237700,0.95,2770.5,2770.4,11.85219]
[1643775240633,0.95,2770.5,2770.4,10.85219]
[1643775240833,0.95,2770.5,2770.4,10.0]
[1643775242036,0.95,2770.5,2770.4,11.0]
[1643775244398,1.30866485,2770.5,2770.4,11.0]
[1643775244799,1.30866485,2770.5,2770.4,10.0]
[1643775248129,1.60866485,2770.5,2770.4,10.0]
[1643775248426,1.78906485,2770.5,2770.4,10.0]
[1643775249832,2.69144225,2770.5,2770.4,10.0]
[1643775250374,2.39144225,2770.5,2770.4,10.0]
[1643775250577,2.21104225,2770.5,2770.4,10.0]
[1643775251680,2.22363131,2770.5,2770.4,10.0]
[1643775251879,2.52363131,2770.5,2770.4,10.0]
[1643775252588,2.21104225,2770.5,2770.4,10.0]
[1643775252782,2.51104225,2770.5,2770.4,10.0]
[1643775253177,2.21104225,2770.5,2770.4,10.0]
[1643775253776,2.51104225,2770.5,2770.4,10.0]
[1643775253977,2.21104225,2770.5,2770.4,10.0]
[1643775254830,2.51104225,2770.5,2770.4,10.0]
[1643775255031,2.21104225,2770.5,2770.4,10.0]
[1643775256236,2.21016566,2770.5,2770.4,10.0]
[1643775259178,2.51016566,2770.5,2770.4,10.0]
[1643775259580,2.21016566,2770.5,2770.4,10.0]
[1643775260178,2.51016566,2770.5,2770.4,10.0]
[1643775261182,2.21016566,2770.5,2770.4,10.0]
[1643775261638,2.51016566,2770.5,2770.4,10.0]
[1643775263540,2.21016566,2770.5,2770.4,10.0]
[1643775263739,2.51016566,2770.5,2770.4,10.0]
[1643775263938,2.21016566,2770.5,2770.4,10.0]
[1643775269224,3.73566302,2770.5,2770.4,10.0]
[1643775269826,2.21016566,2770.5,2770.4,10.0]
[1643775270225,1.30866485,2770.5,2770.4,10.0]
[1643775270429,1.60866485,2770.5,2770.4,10.0]
[1643775271831,1.30866485,2770.5,2770.4,10.0]
[1643775274077,1.30866485,2770.5,2770.4,10.90229]
[1643775274676,1.30866485,2770.5,2770.4,11.90229]
[1643775274876,0.95,2770.5,2770.4,11.90229]